Cogmind - Beta 15 @@@ ROGUE MODE // 2025.08.30 @ 15:46:42 Player: beans Result: Destroyed by S-27 Virus with Autogun Performance ------------- Evolutions (4) 2000 Regions Visited (12) 2400 Robots Destroyed (105) 525 Value Destroyed (2316) 2316 Prototype IDs (31) 620 Alien Tech Used (0) 0 Bonus (-39) -39 TOTAL SCORE: 7822 Bonus ------- Aligned with FarCom 300 Friendly Fire -339 Cogmind --------- Core Integrity 0/850 Matter 39/300 Energy 100/100 System Corruption 12% Temperature Cool (9) Movement Core (50) Location -6/Factory Parts ------- > --- POWER (3) -------- (None) > --- PROPULSION (4) --- (None) > --- UTILITY (4) ------ Core Analyzer > --- WEAPON (4) ------- (None) > --- INVENTORY (5) ---- Improved Heavy Treads Advanced Cooling System Linear Accelerator Peak State ------------ > --- POWER ------------ Heavy Ion Engine > --- PROPULSION ------- Aerolev Unit Gravmag System Antigrav System > --- UTILITY ---------- Advanced Heat Sink Improved Cooling System Advanced Targeting Computer Hardened Medium Armor Plating > --- WEAPON ----------- Field Laser Heavy Laser Heavy Ion Cannon Gauss Cannon > --- INVENTORY -------- Precision Assault Rifle Precision Assault Rifle Precision Assault Rifle Precision Assault Rifle Rocket Launcher [Rating: 49] Favorites ----------- Power Heavy Ion Engine Engine Heavy Ion Engine Propulsion Aerolev Unit Treads Light Treads Leg Flexi-carbon Leg Hover Unit Aerolev Unit Flight Unit Cooled VTOL Module Utility Improved Heat Sink Device Improved Heat Sink Processor Advanced Targeting Computer Protection Hardened Medium Armor Plating Weapon Improved Assault Rifle Energy Gun Particle Gun Energy Cannon Heavy Ion Cannon Ballistic Gun Improved Assault Rifle Ballistic Cannon Gauss Cannon Launcher Grenade Launcher Build | -11 -10 -9 -9 -9 -8 -8 -7 -7 -7 -6 -6 -6 ------- Run | Yrd Mat Mat Min Exi Min Mat Fac Was Fac Fac Was Fac Slots Evolved 8 | . . 2 . . . 2 2 . . 2 . . Power 2 | . . . . . . . . . . 2 . . Propulsion 2 | . . . . . . . 2 . . . . . Utility 2 | . . . . . . 2 . . . . . . Weapon 2 | . . 2 . . . . . . . . . . Parts Attached 51 | 4 1 18 . . 1 9 12 2 . . . 4 Power 3 | 1 . 1 . . . . 1 . . . . . Engine 3 | 1 . 1 . . . . 1 . . . . . Core . | . . . . . . . . . . . . . Reactor . | . . . . . . . . . . . . . Propulsion 9 | 2 . 3 . . . 1 2 . . . . 1 Treads 2 | 2 . . . . . . . . . . . . Leg 1 | . . . . . . . . . . . . 1 Wheel . | . . . . . . . . . . . . . Hover 5 | . . 3 . . . 1 1 . . . . . Flight 1 | . . . . . . . 1 . . . . . Utility 12 | . . 5 . . 1 3 2 1 . . . . Device 9 | . . 5 . . 1 1 2 . . . . . Storage . | . . . . . . . . . . . . . Processor 2 | . . . . . . 1 . 1 . . . . Hackware . | . . . . . . . . . . . . . Protection 1 | . . . . . . 1 . . . . . . Artifact . | . . . . . . . . . . . . . Weapon 27 | 1 1 9 . . . 5 7 1 . . . 3 Energy Gun 10 | 1 . 5 . . . 1 1 1 . . . 1 Energy Cannon 4 | . . . . . . 1 2 . . . . 1 Ballistic Gun 9 | . . 4 . . . 3 2 . . . . . Ballistic Cannon 1 | . . . . . . . 1 . . . . . Launcher 3 | . 1 . . . . . 1 . . . . 1 Special Weapon . | . . . . . . . . . . . . . Impact Weapon . | . . . . . . . . . . . . . Slashing Weapon . | . . . . . . . . . . . . . Piercing Weapon . | . . . . . . . . . . . . . Special Melee Weapon . | . . . . . . . . . . . . . Unidentified Prototypes 6 | . . 3 . . . 1 1 . . . . 1 Parts Lost 26 | . . 4 . . 1 3 15 . . . . 3 Power 1 | . . . . . . . 1 . . . . . Propulsion 7 | . . . . . 1 1 3 . . . . 2 Utility 7 | . . 1 . . . 1 5 . . . . . Weapon 11 | . . 3 . . . 1 6 . . . . 1 Highest Loss Streak 6 | . . 3 . . 1 3 6 . . . . 1 To Critical Strikes . | . . . . . . . . . . . . . Average Backups 4 | . 2 2 5 5 4 3 4 3 4 4 4 3 Power . | . . . . . . . . . . . . . Propulsion . | . . . 1 1 . . . . 1 1 1 1 Utility . | . . . 1 1 1 . . . 1 1 1 1 Weapon 2 | . 2 1 2 3 2 3 4 2 2 2 2 1 Tool/Special . | . . . . . . . . . . . . . Unused Backups 5 | 1 . 1 . . . . . . . . . 3 Power . | . . . . . . . . . . . . . Propulsion 2 | . . 1 . . . . . . . . . 1 Utility 1 | . . . . . . . . . . . . 1 Weapon 2 | 1 . . . . . . . . . . . 1 Tool/Special . | . . . . . . . . . . . . . Average Slot Usage (%) 74 | . 68 81 100 100 99 93 68 20 15 13 13 13 Engine 8 | . 14 11 11 11 11 9 5 . . . . . Treads 2 | . 28 7 . . . . . . . . . . Hover 14 | . . 14 22 22 21 13 17 . . . . . Device 12 | . . 14 22 22 22 21 7 . . . . . Processor 2 | . . . . . . 5 6 6 7 6 6 6 Protection 1 | . . . . . . 9 3 . . . . . Energy Gun 8 | . 14 28 . . . 4 8 5 . . . . Energy Cannon 2 | . . . . . . 5 8 . . . . 1 Ballistic Gun 16 | . . 1 44 44 44 25 4 . . . . . Launcher 1 | . 11 4 . . . . . . . . . . Peak Build Rating 49 | 4 5 28 28 28 32 42 49 18 12 12 12 17 Average Rating 25 | 2 4 15 27 28 31 36 36 13 12 12 12 11 On Entrance 17 | . 4 5 28 28 28 32 42 6 12 12 12 12 Naked Turns 30 | . . . . . . . 30 . . . . . Heaviest Build 40 | 6 9 22 22 22 22 35 40 4 . . . 8 Greatest Support 40 | 40 40 40 16 16 16 17 28 7 7 7 7 20 Greatest Overweight (x) 5 | . . 1 1 1 2 4 5 . . . . 2 Average Overweight (x) . | . . . 1 1 1 2 . . . . . . Largest Inventory Capacity 5 | 5 5 5 5 5 5 5 5 5 5 5 5 5 Average Capacity 5 | 5 5 5 5 5 5 5 5 5 5 5 5 5 Most Carried 5 | 2 4 5 5 5 5 5 5 5 5 5 5 5 Average Carried 4 | . 2 2 4 5 4 4 4 3 5 5 5 4 Final Capacity 5 | 5 5 5 5 5 5 5 5 5 5 5 5 5 Final Carried 5 | . 4 5 5 5 5 5 4 5 5 5 5 4 Class Distribution -------------------- 40% | Skirmisher 30% | Gunner 25% | Mutant 3% | Sprinter Dominant Class ---------------- Mutant | -10/Materials Gunner | -9/Materials Gunner | -9/Mines Gunner | -9/Exiles Skirmisher | -8/Mines Skirmisher | -8/Materials Skirmisher | -7/Factory Sprinter | -7/Waste Mutant | -7/Factory Sprinter | -6/Factory Sprinter | -6/Waste Mutant | -6/Factory Resources | -11 -10 -9 -9 -9 -8 -8 -7 -7 -7 -6 -6 -6 ----------- Run | Yrd Mat Mat Min Exi Min Mat Fac Was Fac Fac Was Fac Matter Collected 1584 | 220 54 393 173 . 339 264 123 . . . . 18 Remotely . | . . . . . . . . . . . . . Salvage Created 3505 | . 114 1017 421 . 554 535 864 . . . . . Parts 217 | . 5 79 12 . 27 41 53 . . . . . Haulers Intercepted 6 | . . 2 . . . . 4 . . . . . Recyclers Shooed 1 | . . . . . . 1 . . . . . . Parts Field Recycled . | . . . . . . . . . . . . . Retrieved Matter . | . . . . . . . . . . . . . Parts Self-Destructed . | . . . . . . . . . . . . . Prevented . | . . . . . . . . . . . . . Kills | -11 -10 -9 -9 -9 -8 -8 -7 -7 -7 -6 -6 -6 ------- Run | Yrd Mat Mat Min Exi Min Mat Fac Was Fac Fac Was Fac Combat Hostiles Destroyed 48 | . 2 16 . . 10 8 12 . . . . . Guns 38 | . . 13 . . 10 8 7 . . . . . Cannons 1 | . . . . . . . 1 . . . . . AOE 8 | . 2 3 . . . . 3 . . . . . Classes Destroyed 15 | . 3 7 . . 2 . 3 . . . . . Worker 10 | . . 2 1 . 1 3 3 . . . . . Builder 11 | . . 9 . . . 1 1 . . . . . Tunneler 6 | . . 1 2 . 2 . 1 . . . . . Hauler 6 | . . 2 . . . . 4 . . . . . Recycler 12 | . 1 3 4 . 1 2 1 . . . . . Mechanic 1 | . . . . . . . 1 . . . . . Operator 3 | . . 1 . . . 2 . . . . . . Watcher 7 | . 2 4 . . . . 1 . . . . . Swarmer 12 | . . 5 . . 3 4 . . . . . . Grunt 20 | . 2 8 . . 5 2 3 . . . . . Duelist 1 | . . . . . 1 . . . . . . . Sentry 4 | . . 3 . . . 1 . . . . . . Specialist 2 | . . . . . . . 2 . . . . . Hunter 3 | . . . . . 1 1 1 . . . . . Programmer 6 | . . . . . . . 6 . . . . . Thug 1 | . . . 1 . . . . . . . . . Best Kill Streak 7 | . 3 7 2 . 3 7 7 . . . . . Combat Bots Only 7 | . 2 7 . . 3 4 3 . . . . . Max Kills in Single Turn 4 | . 1 3 1 . 2 2 4 . . . . . Gunslinging 1 | . . . . . 1 1 . . . . . . Exploded 2 | . 1 2 . . . . 2 . . . . . Melee . | . . . . . . . . . . . . . Uniques/NPCs Destroyed . | . . . . . . . . . . . . . Combat | -11 -10 -9 -9 -9 -8 -8 -7 -7 -7 -6 -6 -6 -------- Run | Yrd Mat Mat Min Exi Min Mat Fac Was Fac Fac Was Fac Hostile Shots Fired 471 | . 3 88 . . 37 29 167 . . 9 . 138 Missed 173 | . 2 24 . . 14 8 70 . . 5 . 50 Hits 298 | . 1 64 . . 23 21 97 . . 4 . 88 Projectile 298 | . 1 64 . . 23 21 97 . . 4 . 88 Critical Strikes 10 | . . 1 . . 1 2 4 . . . . 2 Part Disruptions 1 | . . . . . . . 1 . . . . . Damage Taken 4533 | . 32 720 . . 300 283 1933 . . 63 . 1202 Core 1499 | . 10 132 . . 18 29 446 . . 63 . 801 Absorbed by Shields . | . . . . . . . . . . . . . Core Remaining (%) 77 | 100 96 . . . 62 94 . . 36 . . . Volleys Fired 242 | . 7 88 14 . 27 32 55 5 . . . 14 Largest 4 | . 2 4 4 . 4 4 4 1 . . . 1 Hottest 260 | . 70 260 92 . 92 179 192 69 . . . 85 Shots Fired 630 | . 14 217 56 . 108 84 131 6 . . . 14 Gun 524 | . 7 201 56 . 108 70 72 6 . . . 4 Cannon 80 | . . . . . . 14 56 . . . . 10 Launcher 26 | . 7 16 . . . . 3 . . . . . Special . | . . . . . . . . . . . . . Kinetic 279 | . . 4 56 . 108 58 53 . . . . . Thermal 325 | . 7 197 . . . 26 75 6 . . . 14 Explosive 26 | . 7 16 . . . . 3 . . . . . Electromagnetic . | . . . . . . . . . . . . . Robot Hit Streak 18 | . 5 10 4 . 5 14 18 3 . . . 2 Robot Miss Streak 4 | . 1 3 2 . 4 1 2 3 . . . 2 Penetration Max 1 | . . . . . . 1 . . . . . . Secondary Targets 7 | . . . . . 4 3 . . . . . . Max Gunslinging Chain 2 | . . . . . 2 1 . . . . . . Shots Hit Robots 318 | . 7 82 29 . 57 58 75 3 . . . 7 Core Hits 171 | . 6 50 11 . 25 21 57 1 . . . . Critical Kills . | . . . . . . . . . . . . . Critical Parts Destroyed 1 | . . . . . . . 1 . . . . . Critical Strikes 11 | . . 7 . . . . 3 1 . . . . Burn 10 | . . 7 . . . . 2 1 . . . . Destroy 1 | . . . . . . . 1 . . . . . Melee Attacks . | . . . . . . . . . . . . . Impact . | . . . . . . . . . . . . . Slashing . | . . . . . . . . . . . . . Piercing . | . . . . . . . . . . . . . Sneak Attacks . | . . . . . . . . . . . . . Combat Hostiles . | . . . . . . . . . . . . . Follow-up Attacks . | . . . . . . . . . . . . . Damage Inflicted 7805 | . 292 1815 525 . 858 1044 2951 73 . . . 247 Guns 4723 | . 36 1210 525 . 858 951 1025 73 . . . 45 Cannons 956 | . . . . . . 93 676 . . . . 187 Explosions 2111 | . 256 605 . . . . 1250 . . . . . Melee . | . . . . . . . . . . . . . Ramming 15 | . . . . . . . . . . . . 15 Kinetic 3071 | . . 17 525 . 858 830 841 . . . . . Thermal 2608 | . 36 1193 . . . 214 860 73 . . . 232 Explosive 2111 | . 256 605 . . . . 1250 . . . . . Electromagnetic . | . . . . . . . . . . . . . Impact . | . . . . . . . . . . . . . Slashing . | . . . . . . . . . . . . . Piercing . | . . . . . . . . . . . . . Highest Corruption 11 | . . 1 1 1 1 . 6 6 6 . 7 11 Average Corruption 2 | . . 1 1 1 1 . 1 6 6 . 7 7 Corruption Purged . | . . . . . . . . . . . . . Corruption Blocked . | . . . . . . . . . . . . . Effects 45 | . . 2 3 3 3 . 15 2 8 . 1 8 Message Errors 9 | . . . 1 1 1 . 1 1 2 . 1 1 Matter Fused 8 | . . 1 1 . . . 4 . 1 . . 1 Heat Flow Errors 7 | . . . . . . . 2 . 3 . . 2 Energy Discharges 7 | . . 1 1 1 . . 2 . 1 . . 1 Data Loss (minor) 8 | . . . . 1 1 . 2 . 1 . . 3 Data Loss (major) 2 | . . . . . . . 2 . . . . . Misfires 1 | . . . . . . . . 1 . . . . Alerts 2 | . . . . . 1 . 1 . . . . . Weapon Failures 1 | . . . . . . . 1 . . . . . Overload Shots . | . . . . . . . . . . . . . Overflow Damage 105 | . 5 15 . . . . 66 . . . . 19 Projectiles 34 | . . . . . . . 15 . . . . 19 Explosions 71 | . 5 15 . . . . 51 . . . . . Melee . | . . . . . . . . . . . . . Knockbacks 2 | . . . . . . . 2 . . . . . Impact . | . . . . . . . . . . . . . Kinetic 2 | . . . . . . . 2 . . . . . Secondary . | . . . . . . . . . . . . . Self-Inflicted Damage 173 | . 22 75 . . . . 73 . . . . 3 Shots 6 | . 1 4 . . . . 1 . . . . . Rammed 2 | . . . . . . . . . . . . 2 Targets Rammed 8 | . . . . . . . . . . . . 8 Kicked 6 | . . . . . . . . . . . . 6 Crushed . | . . . . . . . . . . . . . Highest Temperature 396 | . 42 396 . . . 48 355 70 224 . . 181 Average Temperature 98 | . 16 126 . . . 28 87 36 116 . . 45 Received Heat Transfer 591 | . 6 150 . . 108 99 153 . . . . 75 Effects 4 | . . 4 . . . . . . . . . . Interference 3 | . . 3 . . . . . . . . . . Damage (minor) 1 | . . 1 . . . . . . . . . . Siege Activations . | . . . . . . . . . . . . . Martial Activations . | . . . . . . . . . . . . . Shielding Activations . | . . . . . . . . . . . . . Robots Disrupted . | . . . . . . . . . . . . . Combat Hostiles . | . . . . . . . . . . . . . Robots Corrupted . | . . . . . . . . . . . . . Combat Hostiles . | . . . . . . . . . . . . . Parts Fried . | . . . . . . . . . . . . . Impact Corruptions . | . . . . . . . . . . . . . Robots Melted 2 | . . 1 . . . . 1 . . . . . Combat Hostiles 1 | . . . . . . . 1 . . . . . Parts Melted 15 | . . 10 . . . . 5 . . . . . Heat Transferred 5814 | . 75 3382 . . . 407 1443 222 . . . 285 Parts Sabotaged . | . . . . . . . . . . . . . Parts Stolen . | . . . . . . . . . . . . . Parts Stripped . | . . . . . . . . . . . . . Power Chain Reactions . | . . . . . . . . . . . . . Alert | -11 -10 -9 -9 -9 -8 -8 -7 -7 -7 -6 -6 -6 ------- Run | Yrd Mat Mat Min Exi Min Mat Fac Was Fac Fac Was Fac Maximum Alert Level 1 | . . 1 . . . . 1 . . . . . Low Security (%) 97 | 100 100 90 100 . 100 100 95 100 100 100 100 100 Level 1 2 | . . 9 . . . . 4 . . . . . Level 2 . | . . . . . . . . . . . . . Level 3 . | . . . . . . . . . . . . . Level 4 . | . . . . . . . . . . . . . Level 5 . | . . . . . . . . . . . . . High Security . | . . . . . . . . . . . . . Max Security . | . . . . . . . . . . . . . Peak Influence 264 | . 78 264 100 . 71 104 229 78 70 131 42 20 Initial 100 | . . 24 100 . . 9 43 78 12 36 42 8 Average 39 | . 21 113 26 . 17 16 30 46 9 75 31 4 Influence Increases 2258 | . 125 694 35 . 266 248 556 . 135 105 . 94 Destroy 0b10 Robot/C 960 | . 40 320 . . 200 160 240 . . . . . Destroy 0b10 Robot/NC 280 | . 15 110 35 . 20 40 60 . . . . . Destroy Leader 246 | . 14 102 . . 40 30 60 . . . . . Allied During Kill 6 | . . . . . 6 . . . . . . . Successful Hack 19 | . 7 7 . . . . 5 . . . . . Disable Machine 120 | . 15 30 . . . 15 60 . . . . . Destroy Structure 207 | . 34 125 . . . 3 41 . . . . 4 Partial Spotted 45 | . . . . . . . . . 30 . . 15 Lose Combat Pursuer 375 | . . . . . . . 90 . 105 105 . 75 Influence Decreases 2258 | . 67 495 292 . 240 178 427 207 78 59 109 106 Entered New Map 536 | . . 34 157 . . 17 53 147 6 39 79 4 Time Decay 1500 | . 67 421 135 . 210 151 264 40 72 20 30 90 Lost Part 182 | . . 40 . . 10 10 110 . . . . 12 Lost Ally 40 | . . . . . 20 . . 20 . . . . Squads Dispatched 15 | . 1 2 . . 1 . 7 . 1 . . 3 Investigation 6 | . 1 1 . . 1 . 1 . 1 . . 1 Extermination 5 | . . . . . . . 4 . . . . 1 Reinforcement 4 | . . 1 . . . . 2 . . . . 1 Assault . | . . . . . . . . . . . . . Garrison . | . . . . . . . . . . . . . Intercept . | . . . . . . . . . . . . . Searches Triggered . | . . . . . . . . . . . . . Construction Impeded 1 | . . 1 . . . . . . . . . . Haulers Reinforced . | . . . . . . . . . . . . . Active Scanning Responses . | . . . . . . . . . . . . . Cargo Convoy Interrupts 1 | . . . . . . . 1 . . . . . Stealth | -11 -10 -9 -9 -9 -8 -8 -7 -7 -7 -6 -6 -6 --------- Run | Yrd Mat Mat Min Exi Min Mat Fac Was Fac Fac Was Fac Distress Signals 3 | . . 1 . . . 1 1 . . . . . Communications Jammed . | . . . . . . . . . . . . . Distress Signals . | . . . . . . . . . . . . . Times Spotted 119 | . 4 25 . . 10 8 34 6 7 6 6 13 Peak Tracking Total 11 | . 2 6 . . 3 4 11 6 6 7 6 5 Tactical Retreats 12 | . . . . . . . 3 . 3 1 . 5 Traps | -11 -10 -9 -9 -9 -8 -8 -7 -7 -7 -6 -6 -6 ------- Run | Yrd Mat Mat Min Exi Min Mat Fac Was Fac Fac Was Fac Traps Triggered 10 | . 1 . . . . . 5 . 2 1 . 1 Indirectly . | . . . . . . . . . . . . . Trap Hack Attempts . | . . . . . . . . . . . . . Triggered . | . . . . . . . . . . . . . Disarmed . | . . . . . . . . . . . . . Reprogrammed . | . . . . . . . . . . . . . Reused . | . . . . . . . . . . . . . Traps Extracted . | . . . . . . . . . . . . . Installed . | . . . . . . . . . . . . . Triggered . | . . . . . . . . . . . . . Machines | -11 -10 -9 -9 -9 -8 -8 -7 -7 -7 -6 -6 -6 ---------- Run | Yrd Mat Mat Min Exi Min Mat Fac Was Fac Fac Was Fac Machines Disabled 8 | . 1 2 . . . 1 4 . . . . . Max in Single Turn 2 | . 1 1 . . . 1 2 . . . . . Machines Repaired . | . . . . . . . . . . . . . Machines Dismantled . | . . . . . . . . . . . . . Machines Sabotaged . | . . . . . . . . . . . . . Overloaded Fab Kills . | . . . . . . . . . . . . . Hacking | -11 -10 -9 -9 -9 -8 -8 -7 -7 -7 -6 -6 -6 --------- Run | Yrd Mat Mat Min Exi Min Mat Fac Was Fac Fac Was Fac Machines Accessed 16 | . 1 3 . 1 1 1 6 . 1 . . 2 Terminals 10 | . 1 3 . . 1 1 3 . 1 . . . Fabricators 1 | . . . . . . . 1 . . . . . Repair Stations . | . . . . . . . . . . . . . Recycling Units 3 | . . . . . . . 1 . . . . 2 Scanalyzers . | . . . . . . . . . . . . . Garrison Access 1 | . . . . . . . 1 . . . . . Total Hacks 28 | . 2 6 . 1 4 2 7 . 1 . . 5 Successful 12 | . 1 1 . 1 3 . 2 . . . . 4 Failed 16 | . 1 5 . . 1 2 5 . 1 . . 1 Catastrophic 1 | . . . . . . . 1 . . . . . Database Lockouts . | . . . . . . . . . . . . . Manual 9 | . 2 3 . 1 . 2 1 . . . . . Terminals 18 | . 2 6 . . 4 2 3 . 1 . . . Fabricators 1 | . . . . . . . 1 . . . . . Repair Stations . | . . . . . . . . . . . . . Recycling Units 6 | . . . . . . . 1 . . . . 5 Scanalyzers . | . . . . . . . . . . . . . Garrison Access 2 | . . . . . . . 2 . . . . . Terminal Hacks 7 | . 1 1 . 1 3 . 1 . . . . . Record 3 | . . . . . 3 . . . . . . . Part Schematic 2 | . 1 1 . . . . . . . . . . Prototype ID Bank 1 | . . . . . . . 1 . . . . . Proto ID Catalog 1 | . . . . 1 . . . . . . . . Fabricator Hacks 1 | . . . . . . . 1 . . . . . Load Schematic 1 | . . . . . . . 1 . . . . . Repair Station Hacks . | . . . . . . . . . . . . . Recycling Unit Hacks 4 | . . . . . . . . . . . . 4 Process 1 | . . . . . . . . . . . . 1 Report Inventory 1 | . . . . . . . . . . . . 1 Retrieve Matter 2 | . . . . . . . . . . . . 2 Scanalyzer . | . . . . . . . . . . . . . Garrison Access Hacks . | . . . . . . . . . . . . . Unauthorized Hacks . | . . . . . . . . . . . . . Terminals . | . . . . . . . . . . . . . Fabricators . | . . . . . . . . . . . . . Repair Stations . | . . . . . . . . . . . . . Recycling Units . | . . . . . . . . . . . . . Scanalyzers . | . . . . . . . . . . . . . Garrison Access . | . . . . . . . . . . . . . Data Cores Recovered 2 | . . 1 . . . 1 . . . . . . Used . | . . . . . . . . . . . . . Hacking Detections 10 | . 1 2 . . 1 1 3 . 1 . . 1 Full Trace Events 3 | . . 1 . . 1 . 1 . . . . . Feedback Events 1 | . . 1 . . . . . . . . . . Corruption 1 | . . 1 . . . . . . . . . . Feedback Blocked . | . . . . . . . . . . . . . Robot Schematics Acquired . | . . . . . . . . . . . . . Robots Built . | . . . . . . . . . . . . . Authchips . | . . . . . . . . . . . . . Time . | . . . . . . . . . . . . . Total Robot Build Rating . | . . . . . . . . . . . . . Part Schematics Acquired 2 | . 1 1 . . . . . . . . . . Parts Built . | . . . . . . . . . . . . . Authchips . | . . . . . . . . . . . . . Time . | . . . . . . . . . . . . . Total Part Build Rating . | . . . . . . . . . . . . . Parts Repaired . | . . . . . . . . . . . . . Time . | . . . . . . . . . . . . . Parts Recycled . | . . . . . . . . . . . . . Recycled Matter 25 | . . . . . . . . . . . . 25 Retrieved Matter 25 | . . . . . . . . . . . . 25 Retrieved Components . | . . . . . . . . . . . . . Parts Scanalyzed . | . . . . . . . . . . . . . Part Schematics Acquired . | . . . . . . . . . . . . . Parts Damaged . | . . . . . . . . . . . . . Bothacking | -11 -10 -9 -9 -9 -8 -8 -7 -7 -7 -6 -6 -6 ------------ Run | Yrd Mat Mat Min Exi Min Mat Fac Was Fac Fac Was Fac Used RIF Installer . | . . . . . . . . . . . . . Robots Hacked . | . . . . . . . . . . . . . Non-combat . | . . . . . . . . . . . . . Combat . | . . . . . . . . . . . . . Robot Hacks Applied . | . . . . . . . . . . . . . Relay Couplers Released 4 | . . . . . . . 4 . . . . . Programmers 4 | . . . . . . . 4 . . . . . Fabnet Peak Effective % . | . . . . . . . . . . . . . Robots Rewired . | . . . . . . . . . . . . . Allies Hacked . | . . . . . . . . . . . . . Hacks Repelled . | . . . . . . . . . . . . . Allies | -11 -10 -9 -9 -9 -8 -8 -7 -7 -7 -6 -6 -6 -------- Run | Yrd Mat Mat Min Exi Min Mat Fac Was Fac Fac Was Fac Total Allies 4 | . . . 3 . . . . 1 . . . . Largest Group 3 | . . . 3 1 1 . . 1 . . . . Highest-Rated Group 40 | . . . 40 16 16 . . 31 . . . . Highest-Rated Ally 31 | . . . 16 16 16 . . 31 . . . . Total Orders . | . . . . . . . . . . . . . Ally Attacks 7 | . . . . . 5 . . 2 . . . . Total Damage 85 | . . . . . 44 . . 41 . . . . Kills . | . . . . . . . . . . . . . Allies Corrupted . | . . . . . . . . . . . . . Allies Melted . | . . . . . . . . . . . . . Intel | -11 -10 -9 -9 -9 -8 -8 -7 -7 -7 -6 -6 -6 ------- Run | Yrd Mat Mat Min Exi Min Mat Fac Was Fac Fac Was Fac Active Infowar (turns) . | . . . . . . . . . . . . . Robot Analysis Total . | . . . . . . . . . . . . . Derelict Logs Recovered 1 | . . . 1 . . . . . . . . . Drone Launches . | . . . . . . . . . . . . . Drone Recoveries . | . . . . . . . . . . . . . Exploration | -11 -10 -9 -9 -9 -8 -8 -7 -7 -7 -6 -6 -6 ------------- Run | Yrd Mat Mat Min Exi Min Mat Fac Was Fac Fac Was Fac Turns Passed 6068 | 51 192 1107 444 324 1047 548 1475 84 347 40 60 349 Spaces Moved 5480 | 30 104 634 372 302 537 199 1327 189 787 121 147 731 Core 242 | 5 . . . . . . 170 . . . . 67 Treads 332 | 25 104 203 . . . . . . . . . . Legs 1 | . . . . . . . . . . . . 1 Wheels . | . . . . . . . . . . . . . Hover 2841 | . . 431 372 302 537 199 1000 . . . . . Flight 2064 | . . . . . . . 157 189 787 121 147 663 Fastest Speed 32 | 50 160 46 106 106 106 166 32 32 32 32 32 32 Average Speed 83 | 141 160 120 106 106 106 212 90 33 34 32 33 39 Slowest Speed 300 | 160 160 160 106 106 170 290 300 35 35 35 35 150 Overloaded Moves 508 | . . . . . . . 156 76 51 86 94 45 Propulsion Burnouts . | . . . . . . . . . . . . . Robots Hopped 16 | . . . . . . . 1 . 9 . . 6 Potential Cave-ins . | . . . . . . . . . . . . . Cave-ins Triggered . | . . . . . . . . . . . . . Exploration Rate (%) 46 | 3 27 65 87 70 92 19 35 86 15 5 76 26 Regions Visited 12 Branch Regions 3 Pre-discovered Areas 1 | . . . 1 . . . . . . . . . Known Exits Taken 1 | . . . . . . 1 . . . . . . Unknown Exits Taken 7 | 1 1 1 1 1 1 . . . 1 . . . Scrap Searched 2 | . . . 1 . 1 . . . . . . . Spaces Dug 18 | . 4 7 . . . 1 6 . . . . . Terrain Destroyed 228 | . 33 143 . . . 3 45 . . . . 4 Melee . | . . . . . . . . . . . . . Projectile 13 | . . . . . . 3 6 . . . . 4 AOE 215 | . 33 143 . . . . 39 . . . . . Terrain Rammed . | . . . . . . . . . . . . . Walls Destroyed . | . . . . . . . . . . . . . Machines Disabled . | . . . . . . . . . . . . . Actions | -11 -10 -9 -9 -9 -8 -8 -7 -7 -7 -6 -6 -6 --------- Run | Yrd Mat Mat Min Exi Min Mat Fac Was Fac Fac Was Fac Total 6474 | 39 116 803 387 305 945 260 1512 205 850 121 158 773 Wait 582 | . . 46 . 4 374 11 62 . 57 . 10 18 Move 5438 | 29 103 633 371 301 536 198 1325 188 768 121 146 719 Hop 16 | . . . . . . . 1 . 9 . . 6 Pick Up 43 | 5 5 12 1 . 3 7 4 3 . . 1 2 Fast Attach 12 | . . 3 . . . 1 7 . . . . 1 Attach 33 | 4 1 9 . . 1 6 5 4 . . . 3 Detach 4 | . . . . . . . 1 3 . . . . Swap 14 | . . 6 . . 1 2 5 . . . . . Drop 27 | 1 . 6 1 . 3 3 8 2 . . 1 2 Fire 242 | . 7 88 14 . 27 32 55 5 . . . 14 Melee . | . . . . . . . . . . . . . Ram 2 | . . . . . . . . . . . . 2 Kick 6 | . . . . . . . . . . . . 6 Crush . | . . . . . . . . . . . . . Escape Stasis 55 | . . . . . . . 39 . 16 . . . Rewire . | . . . . . . . . . . . . . Trap . | . . . . . . . . . . . . . Miscellaneous . | . . . . . . . . . . . . . Route ------- -11/Scrapyard -10/Materials (discovered 2 exits: *Mat / [*Sub]) -9/Materials (discovered 3 exits: *Mat / [*Min x2]) -9/Mines (discovered 2 exits: *Mat / *Exi) -9/Exiles -8/Mines -8/Materials -7/Factory -7/Waste -7/Factory -6/Factory -6/Waste -6/Factory History --------- Turn | Location | Event 2 | -11/Scrapyard | Discovered new exit (range 16) 52 | -11/Scrapyard | Entered Materials 204 | -10/Materials | Discovered new exit (range 16) 214 | -10/Materials | Discovered new exit (range 11) 244 | -10/Materials | Entered another Materials area 244 | -9/Materials | Evolved 2 slots: Weapon x2 312 | -9/Materials | Build established: Mutant 329 | -9/Materials | Discovered new exit (range 10) 795 | -9/Materials | Discovered new exit (range 4) 930 | -9/Materials | Build established: Gunner 1274 | -9/Materials | Destroyed 7 combat bots 1275 | -9/Materials | Lost 3 parts (3w) 1283 | -9/Materials | Discovered new exit (range 16) 1351 | -9/Materials | Entered Mines 1357 | -9/Mines | Learned location of Storage (-7) 1368 | -9/Mines | Met a Derelict bent on vengeance 1548 | -9/Mines | Received a Rocket Launcher from a helpful Derelict 1692 | -9/Mines | Discovered new exit (range 13) 1775 | -9/Mines | Assisted by bots powering up and referring to "LRC-V3" 1791 | -9/Mines | Deemed a non-threat by the Exiles lab entrance 1791 | -9/Mines | Discovered new exit (range 5) 1795 | -9/Mines | Entered Exiles 1795 | -9/Exiles | Accompanied by 1 ally 1820 | -9/Exiles | Met 8R-AWN 1839 | -9/Exiles | Met EX-HEX 1874 | -9/Exiles | Met EX-BIN 1887 | -9/Exiles | Aligned with FarCom system 1888 | -9/Exiles | Given EX-Vault access code 1914 | -9/Exiles | Opened EX-Vault 1943 | -9/Exiles | Warned to stay clear of 0b10 Research branches 1973 | -9/Exiles | Met EX-DEC 2103 | -9/Exiles | Discovered new exit (range 14) 2119 | -9/Exiles | Entered Mines 2119 | -8/Mines | Accompanied by 1 ally 2421 | -8/Mines | Build established: Skirmisher 3160 | -8/Mines | Discovered new exit (range 5) 3166 | -8/Mines | Entered Materials 3166 | -8/Materials | Evolved 2 slots: Utility x2 3167 | -8/Materials | Identified exit to Factory 3403 | -8/Materials | Lost 3 parts (1n1u1w) 3714 | -8/Materials | Entered Factory 3714 | -7/Factory | Evolved 2 slots: Propulsion x2 4460 | -7/Factory | Lost 4 parts (1p2u1w) 4810 | -7/Factory | Build established: Gunner 4986 | -7/Factory | Cargo convoy interrupted 5024 | -7/Factory | Lost 6 parts (3n1u2w) 5078 | -7/Factory | Core integrity fell below 50% 5137 | -7/Factory | Lost 4 parts (1u3w) 5189 | -7/Factory | Sucked down chute 5189 | -7/Factory | Entered Waste 5190 | -7/Waste | Met a frightened Derelict 5202 | -7/Waste | Spotted C-40 Crusher 5205 | -7/Waste | Spotted C-40 Crusher 5215 | -7/Waste | Spotted C-40 Crusher 5217 | -7/Waste | Spotted C-40 Crusher 5238 | -7/Waste | Spotted C-40 Crusher 5240 | -7/Waste | Spotted C-40 Crusher 5258 | -7/Waste | Discovered new exit (range 13) 5273 | -7/Waste | Entered Factory 5516 | -7/Factory | Discovered new exit (range 14) 5570 | -7/Factory | Build established: Mutant 5620 | -7/Factory | Entered another Factory area 5620 | -6/Factory | Evolved 2 slots: Power x2 5660 | -6/Factory | Sucked down chute 5660 | -6/Factory | Entered Waste 5674 | -6/Waste | Spotted C-40 Crusher 5675 | -6/Waste | EMP discharged 5675 | -6/Waste | Spotted C-40 Crusher 5680 | -6/Waste | Spotted C-40 Crusher 5680 | -6/Waste | Spotted C-40 Crusher 5707 | -6/Waste | Spotted C-40 Crusher 5714 | -6/Waste | Discovered new exit (range 16) 5715 | -6/Waste | Spotted C-40 Crusher 5720 | -6/Waste | Entered Factory 5978 | -6/Factory | System corruption reached 10% 6037 | -6/Factory | Core integrity fell below 50% 6060 | -6/Factory | Core integrity fell below 20% 6069 | -6/Factory | Destroyed by S-27 Virus with Autogun Last Messages --------------- Acquired Plasma Rifle. K-01 Serf cleans the Fusion Modulator. M-13 Machinist repairs P-60 Hacker Gravmag System. R-10 Processor suffers critical hit (Destroy). Plasma Rifle destroyed. M-13 Machinist repairs P-60 Hacker Remote Datajack. K-01 Serf cleans the Construction Platform. System corrupted: Heat flow error (+218). Acquired Flexi-carbon Leg. Kicked S-27 Virus. Kicked S-27 Virus out of the way. Kicked S-27 Virus. Flexi-carbon Leg destroyed. Slammed into S-27 Virus. Destabilizing: System corrupted (+1). Slammed into S-27 Virus. Destabilizing: System corrupted (+1). M-28 Smith repairs S-27 Virus. Map ----- +----------------------------------------------------+ | ??????????????# #??????# #?# # | | ??????????????# ########+### / | | ??????????????# # """ ## # | | ??????????????# # ""R" ## # | | ??????????????# # "" " [## ] ###/########## | | ?????????###### + ## # #???? | | ?????????# # # ## # """" #???? | | ?????????# # # ####### """" #???? | | ?????????# # # #?????# """" #???? | | ?????????# # # [ #?????# """" #???? | | ?????????# # ################# """" #???? | | ?????????# + / """" #???? | | ?????????# # ##### #/######## """" #???? | | ?????????# # #???# # ! #?# #???? | | ?????????# # #???# + #?##/#######???? | | ?????????###### T#??# ## #??# #?????????? | | ????????????? #??# ## #??# #?????????? | | ???????????? ##??# ##* ! #??# #?????????? | | ??????????? #???# ## #??# #?????????? | | ????????? #???# ############ #?????????? | | ???????? #???# #?# # #?????????? | | ????????########+########+###"" / # #?????????? | | ??????????????# ##"Y # #?????????? | | ????????Y????# """"""""" ##"" " " # #?????????? | | ! ????????????# ## " " # #?????????? | | ????????????# s@s## " " # #?????????? | | """"""??????# p!s## " " # #?????????? | | """""" ?????# m! ## " " # #?????????? | | #????# s ## * " " # #?????????? | | #????# ## " " # #?????????? | | "" "" #????# ## " " # #?????????? | | ""T"" #????# """"""""" ## " " # #?????????? | | """ ?????# ## # #?????????? | | ?? ???????# ## # #?????????? | | ???#+#?#+#????########+###########+### ##????????? | | ???# #?# #???????????# #????????? | | ???# #?# #???????????# #### = #????????? | | ???# #?# ############# #??# #????????? | | ???# #?# #??########### #????????? | | ???# ### ####????????????# #????????? | | ???# #???????????????# #????????? | | ???# #???????????????# #????????? | | ???# #???????????????# #????????? | | ???################ #???????????????# #????????? | | ????#! #???# #???????????????# #????????? | | #???# #???# #???????????????# #????????? | | #???# #???# #???????#?????? # ????????? | | #???# ""#???# #?????? #????? # #????????? | | #???# """ ""#???# #????? #???? # #????????? | | #???# """ F"#???# #????? #???? # #????????? | +----------------------------------------------------+ Best States ------------- Heat Dissipation 67 Coolant Potential 50 Energy Generation 14 Energy Capacity 280 Matter Stores 300 Matter Capacity 300 Sight Range 16 Terrain Scan Density 10 Armor Coverage 225 Weapon Cycling 15 Evasion (%) 63 Targeting Accuracy 8 Core Analysis 6 Recoil Reduction 2 Particle Charging 15 Item Schematics ----------------- Hcp. Matter Pod | -10/Materials | Hacked Cooling System | -9/Materials | Hacked Robot Schematics ------------------ None Fabricated ------------ Nothing Repaired ---------- Nothing Alien Tech Used ----------------- None Achievements -------------- None Challenges ------------ None Game ------ Seed AntigravHeartNullifier Manual? 0 Play Time 00:56:13 Cumulative 115.0 hours Start 2025.08.30 @ 14:06:46 End 2025.08.30 @ 15:46:42 Sessions 1 Manual Loads 0 Difficulty Rogue Special Mode None Game No. 420 Rogue 420 Adventurer 0 Explorer 0 Win Type - Total 0 Types 0/0/0/0/0/0/0/0/0/0 Lore% 45 Gallery% 44 Achievement% 31 Wizard Run 0 Options --------- Layout 2 ASCII 0 Keyboard 0 Movement Mouse Keybinds 0 Fullscreen 2 Font 24/Smallcaps Map View 50x44 Zoom Use 0% Tactical HUD 0 Map Filters NONE Filters NONE Steam 1 RUN: 387bbd81-9049-4560-8f5f-79983ae3b822